[Event "EYCC Girls-U12 2019"]
[Site "Bratislava"]
[Date "2019.08.05"]
[Round "4.8"]
[White "Musabayeva, Diana"]
[Black "Sargsyan, Lilit G."]
[Result "1-0"]
[ECO "C18"]
[WhiteElo "1679"]
[BlackElo "1415"]
[Annotator "NA"]
[PlyCount "107"]
[EventDate "2019.08.02"]
[EventType "swiss"]
[EventCountry "SVK"]
[SourceTitle "playchess.com"]
[Source "ChessBase"]
[SourceQuality "1"]
[TimeControl "40/5400+30:1800+30"]

1. e4 {[%emt 0:00:00]} e6 {[%emt 0:00:00]} 2. d4 {[%emt 0:00:00]} d5 {[%emt 0:00:00]} 3. Nc3 {[%emt 0:00:00]} Bb4 {[%emt 0:00:00]} 4. e5 {[%emt 0:00:02]} c5 {[%emt 0:00:06]} 5. a3 {[%emt 0:01:55]} Bxc3+ {[%emt 0:00:19]} 6. bxc3 {[%emt 0:00:02]} Ne7 {[%emt 0:00:59]} 7. f4 {[%emt 0:02:59]} Nbc6 {[%emt 0:04:12]} 8. Nf3 {[%emt 0:07:33]} Qa5 {[%emt 0:04:50]} 9. Bd2 {[%emt 0:03:53]} Bd7 {[%emt 0:07:47]} 10. Bd3 {[%emt 0:08:13]} c4 {[%emt 0:04:28]} 11. Be2 {[%emt 0:01:03]} O-O-O {[%emt 0:07:30]} 12. O-O {[%emt 0:03:02]} f6 {[%emt 0:01:59]} 13. Qb1 {[%emt 0:07:31]} Rdf8 {[%emt 0:02:14]} 14. Qb2 {[%emt 0:03:03]} fxe5 {[%emt 0:02:48]} 15. fxe5 {[%emt 0:02:53]} h6 {[%emt 0:01:26]} 16. Kh1 {[%emt 0:05:47]} g5 {[%emt 0:10:35]} 17. Ng1 {[%emt 0:05:14]} Nf5 {[%emt 0:12:44]} 18. Rab1 {[%emt 0:06:56]} Nd8 {[%emt 0:01:15]} 19. Qb4 {[%emt 0:04:44]} Qc7 {[%emt 0:02:38]} 20. a4 {[%emt 0:02:28]} Rfg8 {[%emt 0:03:29]} 21. Rf2 {[%emt 0:04:12]} h5 {[%emt 0:02:13]} 22. Rbf1 {[%emt 0:01:51]} h4 {[%emt 0:04:00]} 23. Nh3 {[%emt 0:06:30]} g4 {[%emt 0:01:59]} 24. Ng5 {[%emt 0:00:29]} Ng3+ {[%emt 0:02:32]} 25. hxg3 {[%emt 0:01:59]} hxg3+ {[%emt 0:00:14]} 26. Kg1 {[%emt 0:00:05]} gxf2+ {[%emt 0:00:22]} 27. Rxf2 {[%emt 0:02:17]} g3 {[%emt 0:03:11]} 28. Rf3 {[%emt 0:00:44]} Nc6 {[%emt 0:02:29]} 29. Qa3 {[%emt 0:03:37]} Qb6 {[%emt 0:00:52]} 30. Rxg3 {[%emt 0:01:40]} Nxe5 {[%emt 0:02:28]} 31. Bf4 {[%emt 0:04:33]} Ng6 {[%emt 0:00:45]} 32. Be3 {[%emt 0:01:13]} Nh4 {[%emt 0:01:42]} 33. Bf4 {[%emt 0:02:28]} Nf5 {[%emt 0:00:58]} 34. Rh3 {[%emt 0:03:09]} Rxh3 {[%emt 0:00:23]} 35. Nxh3 {[%emt 0:00:06]} Nh4 {[%emt 0:02:23]} 36. Ng5 {[%emt 0:02:26]} Ng6 {[%emt 0:02:55]} 37. Bg3 {[%emt 0:01:23]} Be8 {[%emt 0:05:13]} 38. Bg4 {[%emt 0:01:21]} Nf8 {[%emt 0:01:10]} 39. Qe7 {[%emt 0:00:50]} Qd8 {[%emt 0:01:12]} 40. Qc5+ {[%emt 0:00:00]} Bc6 {[%emt 0:00:00]} 41. Nf7 {[%emt 0:11:43]} Qf6 {[%emt 0:13:54]} 42. Qd6 {[%emt 0:07:00]} Qxf7 {[%emt 0:02:47]} 43. Qb8+ {[%emt 0:00:15]} Kd7 {[%emt 0:00:24]} 44. Qc7+ {[%emt 0:00:08]} Ke8 {[%emt 0:00:30]} 45. Qc8+ {[%emt 0:00:32]} Ke7 {[%emt 0:00:46]} 46. Bh4+ {[%emt 0:00:11]} Rg5 {[%emt 0:05:23]} 47. Bxg5+ {[%emt 0:02:36]} Kd6 {[%emt 0:00:30]} 48. Qb8+ {[%emt 0:04:15]} Qc7 {[%emt 0:02:13]} 49. Bf4+ {[%emt 0:00:08]} Ke7 {[%emt 0:00:51]} 50. Qxc7+ {[%emt 0:00:24]} Nd7 {[%emt 0:00:20]} 51. Qd6+ {[%emt 0:00:14]} Kf7 {[%emt 0:00:11]} 52. Bxe6+ {[%emt 0:00:08]} Kg7 {[%emt 0:00:09]} 53. Bxd7 {[%emt 0:00:04]} Bxd7 {[%emt 0:00:08]} 54. Qxd7+ {[%emt 0:00:05]} 1-0

[Event "EYCC Girls-U12 2019"]
[Site "Bratislava"]
[Date "2019.08.05"]
[Round "4.9"]
[White "Maria, Lia-Alexandra"]
[Black "Mikheeva, Galina"]
[Result "0-1"]
[ECO "C61"]
[WhiteElo "1572"]
[BlackElo "1952"]
[Annotator "NA"]
[PlyCount "66"]
[EventDate "2019.08.02"]
[EventType "swiss"]
[EventCountry "SVK"]
[SourceTitle "playchess.com"]
[Source "ChessBase"]
[SourceQuality "1"]
[TimeControl "40/5400+30:1800+30"]

1. e4 {[%emt 0:00:00]} e5 {[%emt 0:00:00]} 2. Nf3 {[%emt 0:00:00]} Nc6 {[%emt 0:00:00]} 3. Bb5 {[%emt 0:00:00]} Nd4 {[%emt 0:01:20]} 4. Nxd4 {[%emt 0:00:08]} exd4 {[%emt 0:00:04]} 5. O-O {[%emt 0:00:29]} Bc5 {[%emt 0:00:32]} 6. b4 {[%emt 0:00:44]} Bxb4 {[%emt 0:03:25]} 7. c3 {[%emt 0:02:05]} Be7 {[%emt 0:30:35]} 8. cxd4 {[%emt 0:02:33]} c6 {[%emt 0:04:27]} 9. Ba4 {[%emt 0:05:07]} Qb6 {[%emt 0:12:01]} 10. Qc2 {[%emt 0:14:29]} Nf6 {[%emt 0:01:29]} 11. Bb2 {[%emt 0:30:03]} O-O {[%emt 0:10:32]} 12. Nc3 {[%emt 0:05:09]} d5 {[%emt 0:06:06]} 13. d3 {[%emt 0:03:33]} Be6 {[%emt 0:05:16]} 14. Kh1 {[%emt 0:03:34]} Rfd8 {[%emt 0:03:42]} 15. Rad1 {[%emt 0:03:17]} Rac8 {[%emt 0:03:47]} 16. f4 {[%emt 0:04:22]} dxe4 {[%emt 0:03:25]} 17. dxe4 {[%emt 0:01:16]} Qa6 {[%emt 0:07:40]} 18. f5 {[%emt 0:03:40]} Bc4 {[%emt 0:00:04]} 19. Rf3 {[%emt 0:00:30]} b5 {[%emt 0:00:08]} 20. Bb3 {[%emt 0:00:22]} b4 {[%emt 0:00:08]} 21. e5 {[%emt 0:02:20]} bxc3 {[%emt 0:00:39]} 22. Bxc4 {[%emt 0:00:53]} Qxc4 {[%emt 0:00:11]} 23. Rxc3 {[%emt 0:01:50]} Qxa2 {[%emt 0:01:35]} 24. exf6 {[%emt 0:02:08]} Bxf6 {[%emt 0:00:03]} 25. Ra3 {[%emt 0:00:13]} Qd5 {[%emt 0:00:06]} 26. Rxa7 {[%emt 0:01:32]} Rb8 {[%emt 0:02:51]} 27. Ra3 {[%emt 0:05:09]} Rb5 {[%emt 0:00:25]} 28. Re3 {[%emt 0:01:23]} h6 {[%emt 0:00:18]} 29. Rg3 {[%emt 0:01:28]} Qxf5 {[%emt 0:01:04]} 30. Qc1 {[%emt 0:01:05]} Bg5 {[%emt 0:01:34]} 31. Qc3 {[%emt 0:00:50]} Rdb8 {[%emt 0:00:14]} 32. Ba1 {[%emt 0:01:16]} Rb1 {[%emt 0:00:13]} 33. Rgd3 {[%emt 0:00:44]} Qf1+ {[%emt 0:00:27]} 0-1

[Event "EYCC Girls-U12 2019"]
[Site "Bratislava"]
[Date "2019.08.05"]
[Round "4.10"]
[White "Haile, Batel Goitom"]
[Black "Manko, Mariya"]
[Result "0-1"]
[ECO "A57"]
[WhiteElo "1522"]
[BlackElo "1807"]
[Annotator "NA"]
[PlyCount "82"]
[EventDate "2019.08.02"]
[EventType "swiss"]
[EventCountry "SVK"]
[SourceTitle "playchess.com"]
[Source "ChessBase"]
[SourceQuality "1"]
[TimeControl "40/5400+30:1800+30"]

1. d4 {[%emt 0:00:00]} Nf6 {[%emt 0:00:00]} 2. c4 {[%emt 0:00:00]} c5 {[%emt 0:00:00]} 3. d5 {[%emt 0:00:09]} b5 {[%emt 0:00:16]} 4. e3 {[%emt 0:00:47]} g6 {[%emt 0:00:32]} 5. b3 {[%emt 0:01:43]} Bg7 {[%emt 0:01:55]} 6. Bb2 {[%emt 0:00:40]} bxc4 {[%emt 0:00:19]} 7. Bxc4 {[%emt 0:01:39]} O-O {[%emt 0:00:51]} 8. Nf3 {[%emt 0:02:02]} d6 {[%emt 0:00:53]} 9. O-O {[%emt 0:01:43]} Ba6 {[%emt 0:02:27]} 10. Nbd2 {[%emt 0:05:31]} Qb6 {[%emt 0:02:33]} 11. Re1 {[%emt 0:01:00]} Nbd7 {[%emt 0:04:21]} 12. Qc2 {[%emt 0:03:17]} Bxc4 {[%emt 0:03:32]} 13. Nxc4 {[%emt 0:00:23]} Qb5 {[%emt 0:00:34]} 14. e4 {[%emt 0:07:54]} Nb6 {[%emt 0:00:40]} 15. Nfd2 {[%emt 0:04:45]} Rfd8 {[%emt 0:07:55]} 16. Nxb6 {[%emt 0:07:41]} axb6 {[%emt 0:01:37]} 17. Nc4 {[%emt 0:03:42]} Qa6 {[%emt 0:02:28]} 18. Bc3 {[%emt 0:08:55]} b5 {[%emt 0:01:24]} 19. Nd2 {[%emt 0:05:57]} Rdc8 {[%emt 0:04:26]} 20. Bb2 {[%emt 0:05:39]} Ra7 {[%emt 0:02:17]} 21. a4 {[%emt 0:03:26]} Rca8 {[%emt 0:06:06]} 22. b4 {[%emt 0:20:35]} bxa4 {[%emt 0:14:20]} 23. bxc5 {[%emt 0:00:18]} dxc5 {[%emt 0:00:42]} 24. e5 {[%emt 0:08:43]} Nxd5 {[%emt 0:02:26]} 25. Qxc5 {[%emt 0:01:44]} e6 {[%emt 0:01:16]} 26. Qd4 {[%emt 0:01:40]} Rb7 {[%emt 0:04:58]} 27. Ne4 {[%emt 0:01:38]} Rb4 {[%emt 0:02:18]} 28. Qd2 {[%emt 0:00:35]} Qb6 {[%emt 0:01:01]} 29. Ba3 {[%emt 0:01:22]} Rb3 {[%emt 0:07:13]} 30. Bc5 {[%emt 0:00:42]} Qb5 {[%emt 0:00:59]} 31. Bd4 {[%emt 0:00:43]} Rd3 {[%emt 0:02:59]} 32. Qb2 {[%emt 0:00:08]} Qb4 {[%emt 0:02:33]} 33. Qxb4 {[%emt 0:00:53]} Nxb4 {[%emt 0:00:05]} 34. Red1 {[%emt 0:00:11]} Rxd4 {[%emt 0:01:40]} 35. Rxd4 {[%emt 0:00:29]} Bxe5 {[%emt 0:00:10]} 36. Rxb4 {[%emt 0:00:33]} Bxa1 {[%emt 0:00:07]} 37. Rb1 {[%emt 0:00:15]} Bd4 {[%emt 0:00:27]} 38. Nd2 {[%emt 0:00:54]} a3 {[%emt 0:00:23]} 39. Nb3 {[%emt 0:00:19]} a2 {[%emt 0:00:15]} 40. Rd1 {[%emt 0:00:00]} Rb8 {[%emt 0:00:00]} 41. Na1 {[%emt 0:02:32]} Rb1 {[%emt 0:01:26]} 0-1

[Event "EYCC Girls-U12 2019"]
[Site "Bratislava"]
[Date "2019.08.05"]
[Round "4.11"]
[White "Schippke, Manon"]
[Black "Muradyan, Anahit"]
[Result "1-0"]
[ECO "C00"]
[WhiteElo "1743"]
[BlackElo "1353"]
[Annotator "NA"]
[PlyCount "89"]
[EventDate "2019.08.02"]
[EventType "swiss"]
[EventCountry "SVK"]
[SourceTitle "playchess.com"]
[Source "ChessBase"]
[SourceQuality "1"]
[TimeControl "40/5400+30:1800+30"]

1. e4 {[%emt 0:00:00]} e6 {[%emt 0:00:00]} 2. b3 {[%emt 0:00:00]} d5 {[%emt 0:00:00]} 3. Bb2 {[%emt 0:00:34]} dxe4 {[%emt 0:00:59]} 4. Nc3 {[%emt 0:01:24]} Nf6 {[%emt 0:00:14]} 5. Qe2 {[%emt 0:00:49]} Bb4 {[%emt 0:05:21]} 6. O-O-O {[%emt 0:01:30]} Bxc3 {[%emt 0:01:37]} 7. Bxc3 {[%emt 0:00:53]} O-O {[%emt 0:00:36]} 8. g4 {[%emt 0:03:20]} Nc6 {[%emt 0:02:57]} 9. h4 {[%emt 0:03:03]} Nd4 {[%emt 0:09:34]} 10. Qe3 {[%emt 0:09:51]} e5 {[%emt 0:05:02]} 11. g5 {[%emt 0:03:09]} Ng4 {[%emt 0:13:32]} 12. Qg3 {[%emt 0:01:14]} Bf5 {[%emt 0:04:59]} 13. Bh3 {[%emt 0:02:44]} Qd7 {[%emt 0:01:50]} 14. Re1 {[%emt 0:02:43]} Nxc2 {[%emt 0:12:45]} 15. Kxc2 {[%emt 0:09:25]} e3+ {[%emt 0:00:14]} 16. Kb2 {[%emt 0:00:12]} Nxf2 {[%emt 0:03:28]} 17. Qxe3 {[%emt 0:01:48]} Nd3+ {[%emt 0:01:44]} 18. Ka1 {[%emt 0:00:27]} Nxe1 {[%emt 0:01:27]} 19. Qxe5 {[%emt 0:05:21]} f6 {[%emt 0:01:08]} 20. Qxf5 {[%emt 0:01:16]} Qxf5 {[%emt 0:00:08]} 21. Bxf5 {[%emt 0:00:05]} fxg5 {[%emt 0:00:18]} 22. Be6+ {[%emt 0:00:22]} Kh8 {[%emt 0:00:13]} 23. hxg5 {[%emt 0:00:11]} Nd3 {[%emt 0:02:08]} 24. a4 {[%emt 0:03:40]} Nf4 {[%emt 0:00:59]} 25. Bc4 {[%emt 0:00:40]} Rf5 {[%emt 0:02:39]} 26. Nf3 {[%emt 0:06:37]} Nd5 {[%emt 0:00:45]} 27. g6 {[%emt 0:02:20]} h5 {[%emt 0:00:38]} 28. Bxd5 {[%emt 0:01:28]} Rxd5 {[%emt 0:00:05]} 29. Ne5 {[%emt 0:00:06]} Kg8 {[%emt 0:00:55]} 30. Rxh5 {[%emt 0:00:44]} Re8 {[%emt 0:01:05]} 31. Rf5 {[%emt 0:00:40]} Rf8 {[%emt 0:01:57]} 32. Rf7 {[%emt 0:05:01]} b6 {[%emt 0:04:48]} 33. Rxc7 {[%emt 0:02:39]} a6 {[%emt 0:02:03]} 34. Nd7 {[%emt 0:02:00]} Rd8 {[%emt 0:00:36]} 35. Nxb6 {[%emt 0:00:26]} R5d6 {[%emt 0:00:42]} 36. Rxg7+ {[%emt 0:00:40]} Kf8 {[%emt 0:00:04]} 37. Nc4 {[%emt 0:00:45]} Re6 {[%emt 0:00:51]} 38. Rf7+ {[%emt 0:05:13]} Kg8 {[%emt 0:00:12]} 39. Rh7 {[%emt 0:00:29]} Kf8 {[%emt 0:01:00]} 40. Rh8+ {[%emt 0:00:00]} Ke7 {[%emt 0:00:00]} 41. g7 {[%emt 0:02:14]} Rg6 {[%emt 0:00:42]} 42. Ne5 {[%emt 0:00:32]} Rg1+ {[%emt 0:00:41]} 43. Kb2 {[%emt 0:00:04]} Rxg7 {[%emt 0:00:50]} 44. Nc6+ {[%emt 0:00:06]} Kd6 {[%emt 0:00:09]} 45. Rxd8+ {[%emt 0:00:10] Rg6} 1-0

[Event "EYCC Girls-U12 2019"]
[Site "Bratislava"]
[Date "2019.08.05"]
[Round "4.12"]
[White "Salajan, Stefania"]
[Black "Siekanska, Maria"]
[Result "1/2-1/2"]
[ECO "B20"]
[WhiteElo "1482"]
[BlackElo "1561"]
[Annotator "NA"]
[PlyCount "180"]
[EventDate "2019.08.02"]
[EventType "swiss"]
[EventCountry "SVK"]
[SourceTitle "playchess.com"]
[Source "ChessBase"]
[SourceQuality "1"]
[TimeControl "40/5400+30:1800+30"]

1. e4 {[%emt 0:00:00]} c5 {[%emt 0:00:00]} 2. c4 {[%emt 0:00:00]} d6 {[%emt 0:00:17]} 3. Nc3 {[%emt 0:00:00]} e6 {[%emt 0:00:18]} 4. g3 {[%emt 0:00:00]} Nf6 {[%emt 0:04:51]} 5. Bg2 {[%emt 0:00:53]} Be7 {[%emt 0:00:27]} 6. d3 {[%emt 0:00:45]} Nc6 {[%emt 0:02:06]} 7. Nge2 {[%emt 0:00:43]} a6 {[%emt 0:01:05]} 8. O-O {[%emt 0:01:13]} Qc7 {[%emt 0:01:25]} 9. h3 {[%emt 0:02:13]} Rb8 {[%emt 0:01:33]} 10. a4 {[%emt 0:00:12]} O-O {[%emt 0:04:06]} 11. f4 {[%emt 0:00:38]} Nd7 {[%emt 0:03:04]} 12. g4 {[%emt 0:02:43]} Na7 {[%emt 0:02:47]} 13. f5 {[%emt 0:06:03]} b5 {[%emt 0:03:10]} 14. fxe6 {[%emt 0:01:03]} fxe6 {[%emt 0:00:35]} 15. Rxf8+ {[%emt 0:01:46]} Bxf8 {[%emt 0:01:04]} 16. axb5 {[%emt 0:02:00]} axb5 {[%emt 0:00:22]} 17. Nf4 Ne5 {[%emt 0:03:45]} 18. b3 {[%emt 0:05:20]} g6 {[%emt 0:05:21]} 19. Be3 {[%emt 0:05:04]} bxc4 {[%emt 0:04:27]} 20. bxc4 {[%emt 0:00:06]} Bg7 21. Rc1 {[%emt 0:01:59]} Nac6 {[%emt 0:06:59]} 22. Nb5 {[%emt 0:06:23]} Qd8 {[%emt 0:01:06]} 23. Qe2 {[%emt 0:09:19]} g5 {[%emt 0:12:26]} 24. Nh5 {[%emt 0:02:35]} Bh8 {[%emt 0:03:34]} 25. Rd1 {[%emt 0:07:31]} Ba6 {[%emt 0:02:07]} 26. Bf1 {[%emt 0:14:53]} Qe7 {[%emt 0:06:27]} 27. Ng3 {[%emt 0:07:48]} Rf8 {[%emt 0:05:26]} 28. Bg2 {[%emt 0:01:52]} Ng6 {[%emt 0:04:33]} 29. Rf1 {[%emt 0:05:31]} Bxb5 {[%emt 0:05:08]} 30. cxb5 {[%emt 0:00:13]} Nd4 {[%emt 0:00:12]} 31. Rxf8+ {[%emt 0:01:30]} Kxf8 {[%emt 0:00:57]} 32. Qf1+ {[%emt 0:01:28]} Ke8 {[%emt 0:00:55]} 33. b6 {[%emt 0:03:34]} Nf4 {[%emt 0:05:37]} 34. Bxf4 {[%emt 0:03:37]} gxf4 {[%emt 0:00:17]} 35. Ne2 {[%emt 0:00:42]} Nxe2+ {[%emt 0:00:43]} 36. Qxe2 {[%emt 0:00:03]} Bd4+ {[%emt 0:01:05]} 37. Kh1 {[%emt 0:01:13]} Qb7 {[%emt 0:00:49]} 38. Qa2 {[%emt 0:01:27]} Kd7 {[%emt 0:04:52]} 39. Qa4+ {[%emt 0:02:55]} Kd8 {[%emt 0:00:38]} 40. Qb3 {[%emt 0:00:00]} Qa6 {[%emt 0:00:00]} 41. Qb1 {[%emt 0:07:00]} Kc8 {[%emt 0:02:44]} 42. b7+ {[%emt 0:01:59]} Qxb7 {[%emt 0:00:05]} 43. Qxb7+ {[%emt 0:00:06]} Kxb7 {[%emt 0:00:03]} 44. Bf3 {[%emt 0:00:43]} Kc6 {[%emt 0:01:28]} 45. Kg2 {[%emt 0:00:27]} d5 {[%emt 0:00:44]} 46. exd5+ {[%emt 0:00:47]} exd5 {[%emt 0:00:01]} 47. Kf1 {[%emt 0:01:23]} Bf6 {[%emt 0:00:43]} 48. Ke2 {[%emt 0:01:34]} Kd6 {[%emt 0:00:45]} 49. Kd2 {[%emt 0:01:58]} c4 {[%emt 0:00:25]} 50. dxc4 {[%emt 0:01:13]} dxc4 {[%emt 0:00:02]} 51. Kc2 {[%emt 0:03:30]} Kc5 {[%emt 0:00:30]} 52. Bd1 {[%emt 0:03:58]} Kd4 {[%emt 0:03:05]} 53. Kd2 {[%emt 0:00:59]} Ke4 {[%emt 0:00:10]} 54. Bc2+ {[%emt 0:02:42]} Kf3 {[%emt 0:02:42]} 55. Bxh7 {[%emt 0:00:06]} Kg2 {[%emt 0:01:13]} 56. h4 {[%emt 0:01:59]} Kg3 {[%emt 0:05:14]} 57. g5 {[%emt 0:00:30]} Bh8 {[%emt 0:00:02]} 58. h5 {[%emt 0:02:01]} Kg4 {[%emt 0:00:34]} 59. Bg6 {[%emt 0:02:16]} Kxg5 {[%emt 0:00:06]} 60. Ke2 {[%emt 0:00:52]} Kg4 {[%emt 0:02:21]} 61. Kf2 {[%emt 0:01:54]} Bd4+ {[%emt 0:00:56]} 62. Kg2 {[%emt 0:00:30]} c3 {[%emt 0:01:17]} 63. Kf1 {[%emt 0:01:26]} Bg7 {[%emt 0:04:39]} 64. Kg2 {[%emt 0:00:23]} Bf8 {[%emt 0:00:59]} 65. Kf2 {[%emt 0:00:47]} Bh6 {[%emt 0:00:34]} 66. Kg2 {[%emt 0:00:39]} Kg5 {[%emt 0:01:20]} 67. Kf3 {[%emt 0:00:49]} Kf6 {[%emt 0:00:07]} 68. Be4 {[%emt 0:01:41]} Ke5 {[%emt 0:00:26]} 69. Bg6 {[%emt 0:00:58]} Kd4 {[%emt 0:00:27]} 70. Ke2 {[%emt 0:01:01]} Kc4 {[%emt 0:00:46]} 71. Kd1 {[%emt 0:01:47]} Kb3 {[%emt 0:01:00]} 72. Bc2+ {[%emt 0:00:14]} Kb2 {[%emt 0:00:01]} 73. Be4 {[%emt 0:00:40]} Bg7 {[%emt 0:00:40]} 74. Bf5 {[%emt 0:00:40]} Kb3 {[%emt 0:02:14]} 75. Bg6 {[%emt 0:00:43]} Kc4 {[%emt 0:02:53]} 76. Ke2 {[%emt 0:00:27]} Bh6 {[%emt 0:00:11]} 77. Bf5 {[%emt 0:00:40]} Kd4 {[%emt 0:00:23]} 78. Bg6 {[%emt 0:00:13]} Kd5 {[%emt 0:01:09]} 79. Kf3 {[%emt 0:00:59]} Ke5 {[%emt 0:00:26]} 80. Bc2 {[%emt 0:00:45]} Kf6 {[%emt 0:00:37]} 81. Bg6 {[%emt 0:00:04]} Ke6 {[%emt 0:00:12]} 82. Be4 {[%emt 0:00:30]} Kd6 {[%emt 0:00:09]} 83. Bg6 {[%emt 0:00:20]} Kc5 {[%emt 0:00:05]} 84. Ke2 {[%emt 0:00:14]} Kd4 {[%emt 0:00:06]} 85. Bh7 {[%emt 0:00:32]} Kc4 {[%emt 0:00:06]} 86. Kd1 {[%emt 0:00:24]} f3 {[%emt 0:00:37]} 87. Ke1 {[%emt 0:00:41]} Be3 {[%emt 0:00:40]} 88. h6 {[%emt 0:00:31]} f2+ {[%emt 0:00:52]} 89. Kf1 {[%emt 0:00:11]} Kd4 {[%emt 0:00:44]} 90. Bb1 {[%emt 0:00:44]} Bxh6 1/2-1/2

[Event "EYCC Girls-U12 2019"]
[Site "Bratislava"]
[Date "2019.08.05"]
[Round "4.13"]
[White "Budagova, Leyla"]
[Black "Ivanova, Dilyana"]
[Result "0-1"]
[ECO "B40"]
[WhiteElo "1442"]
[BlackElo "1734"]
[Annotator "NA"]
[PlyCount "118"]
[EventDate "2019.08.02"]
[EventType "swiss"]
[EventCountry "SVK"]
[SourceTitle "playchess.com"]
[Source "ChessBase"]
[SourceQuality "1"]
[TimeControl "40/5400+30:1800+30"]

1. e4 {[%emt 0:00:00]} c5 {[%emt 0:00:00]} 2. Nf3 {[%emt 0:00:00]} e6 {[%emt 0:00:00]} 3. b4 {[%emt 0:00:00]} cxb4 {[%emt 0:00:53]} 4. d4 {[%emt 0:00:20]} d6 {[%emt 0:03:10]} 5. a3 {[%emt 0:01:27]} b3 {[%emt 0:02:36]} 6. cxb3 {[%emt 0:00:26]} Nf6 {[%emt 0:01:03]} 7. Nc3 {[%emt 0:00:38]} Nc6 {[%emt 0:03:36]} 8. Be2 {[%emt 0:01:43]} Be7 {[%emt 0:05:56]} 9. O-O {[%emt 0:00:07]} O-O {[%emt 0:01:06]} 10. Be3 {[%emt 0:02:30]} Ng4 {[%emt 0:06:17]} 11. Bd2 {[%emt 0:04:35]} Bd7 {[%emt 0:06:38]} 12. h3 {[%emt 0:02:15]} Nf6 {[%emt 0:00:33]} 13. Bd3 {[%emt 0:08:16]} Rc8 {[%emt 0:02:53]} 14. b4 {[%emt 0:08:41]} Ne8 {[%emt 0:10:37]} 15. Rc1 {[%emt 0:03:51]} Bf6 {[%emt 0:02:39]} 16. Be3 {[%emt 0:00:26]} a6 {[%emt 0:19:41]} 17. b5 {[%emt 0:07:46]} axb5 {[%emt 0:00:47]} 18. Nxb5 {[%emt 0:00:36]} d5 {[%emt 0:06:50]} 19. exd5 {[%emt 0:03:23]} exd5 {[%emt 0:00:07]} 20. Rb1 {[%emt 0:00:59]} Be6 {[%emt 0:01:27]} 21. Bf4 {[%emt 0:04:41]} Qd7 {[%emt 0:03:39]} 22. Bg5 {[%emt 0:03:05]} Bxg5 {[%emt 0:03:08]} 23. Nxg5 {[%emt 0:00:09]} Bf5 {[%emt 0:00:19]} 24. Bxf5 {[%emt 0:01:00]} Qxf5 {[%emt 0:00:03]} 25. Nf3 {[%emt 0:00:20]} Na5 {[%emt 0:05:15]} 26. Ne5 {[%emt 0:02:41]} f6 {[%emt 0:02:03]} 27. Nd3 {[%emt 0:04:39]} Nc4 {[%emt 0:01:05]} 28. Na7 {[%emt 0:03:42]} Rc7 {[%emt 0:01:49]} 29. Nb5 {[%emt 0:01:00]} Re7 {[%emt 0:00:51]} 30. Nb2 {[%emt 0:02:56]} Ned6 {[%emt 0:00:58]} 31. Nxd6 {[%emt 0:02:11]} Nxd6 {[%emt 0:00:03]} 32. Rc1 {[%emt 0:00:24]} Rfe8 {[%emt 0:01:23]} 33. f3 {[%emt 0:03:52]} Qf4 {[%emt 0:01:32]} 34. Rc5 {[%emt 0:06:31]} Re2 {[%emt 0:02:31]} 35. Rc2 {[%emt 0:04:25]} Rxc2 {[%emt 0:00:50]} 36. Qxc2 {[%emt 0:00:07]} Nf5 {[%emt 0:01:45]} 37. Qf2 {[%emt 0:06:04]} Nxd4 {[%emt 0:02:03]} 38. Nd3 {[%emt 0:00:59]} Ne2+ {[%emt 0:01:30]} 39. Qxe2 {[%emt 0:00:28]} Qd4+ {[%emt 0:00:01]} 40. Qf2 {[%emt 0:00:00]} Qxd3 {[%emt 0:00:00]} 41. Re1 {[%emt 0:02:46]} Rxe1+ {[%emt 0:03:15]} 42. Qxe1 {[%emt 0:00:13]} Kf7 {[%emt 0:02:01]} 43. Qb4 {[%emt 0:00:43]} Qe3+ {[%emt 0:02:19]} 44. Kh2 {[%emt 0:01:32]} d4 {[%emt 0:03:11]} 45. Qxb7+ {[%emt 0:01:06]} Kg6 {[%emt 0:00:18]} 46. Qb4 {[%emt 0:01:02]} d3 {[%emt 0:05:15]} 47. Qg4+ {[%emt 0:00:27]} Qg5 {[%emt 0:00:38]} 48. Qe4+ {[%emt 0:00:21]} Qf5 {[%emt 0:00:07]} 49. Qe8+ {[%emt 0:00:10]} Kg5 {[%emt 0:00:07]} 50. h4+ {[%emt 0:06:37]} Kf4 {[%emt 0:06:56]} 51. Qe1 {[%emt 0:08:07]} Qe5 {[%emt 0:01:56]} 52. Qc1+ {[%emt 0:00:59]} Kf5+ {[%emt 0:02:01]} 53. Kh3 {[%emt 0:00:34]} Qe2 {[%emt 0:02:38]} 54. g4+ {[%emt 0:02:00]} Ke5 {[%emt 0:02:26]} 55. Qc7+ {[%emt 0:03:48]} Kd4 {[%emt 0:01:02]} 56. Qd6+ {[%emt 0:00:57]} Ke3 {[%emt 0:00:55]} 57. Qe6+ {[%emt 0:00:48]} Kf2 {[%emt 0:01:00]} 58. Qd6 {[%emt 0:03:40]} Qxf3+ {[%emt 0:00:11]} 59. Kh2 {[%emt 0:00:05]} Qg2# {[%emt 0:00:06]} 0-1